fUST/lending_fUST_20240821
["ID","MTS","AMOUNT","RATE_DAILY","PERIOD"]
[335392935,1724181042121,-1000.0,0.000349,16]
[335392937,1724181042131,-673.07858906,0.0003493,2]
[335392940,1724181042145,-151.0,0.0003493,7]
[335392942,1724181042156,-151.660139,0.0003493,7]
[335392944,1724181042165,-6343.99118036,0.00034931,9]
[335392946,1724181042175,-501.85981448,0.00034931,21]
[335392948,1724181042184,-212.82878893,0.00034931,21]
[335392950,1724181042193,-1000.0,0.00034931,21]
[335392952,1724181042203,-1000.0,0.00034931,21]
[335392954,1724181042211,-513.04125076,0.00034931,21]
[335392956,1724181042221,-500.0,0.00034931,21]
[335392958,1724181042231,-500.0,0.00034931,21]
[335392960,1724181042241,-500.0,0.00034931,21]
[335392962,1724181042250,-153.08246531,0.00034931,21]
[335392964,1724181042259,-500.0,0.00034931,21]
[335392966,1724181042269,-500.0,0.00034931,21]
[335392968,1724181042279,-624.73401306,0.00034931,21]
[335392970,1724181042289,-500.0,0.00034931,21]
[335392972,1724181042298,-500.0,0.00034931,21]
[335392974,1724181042307,-500.0,0.00034931,21]
[335392976,1724181042316,-502.80649111,0.00034931,21]
[335392978,1724181042326,-194.73111635,0.00034931,21]
[335392980,1724181042335,-500.0,0.00034931,21]
[335392982,1724181042345,-500.0,0.00034931,21]
[335392984,1724181042355,-504.40534416,0.00034931,21]
[335392986,1724181042364,-501.59760848,0.00034931,21]
[335392988,1724181042373,-369.9764512,0.00034931,21]
[335392990,1724181042382,-500.0,0.00034931,21]
[335392992,1724181042391,-515.46927583,0.00034931,21]
[335392994,1724181042400,-500.0,0.00034931,21]
[335392996,1724181042409,-500.0,0.00034931,21]
[335392998,1724181042418,-500.0,0.00034931,21]
[335393001,1724181042427,-500.0,0.00034931,21]
[335393003,1724181042437,-389.58728103,0.00034931,21]
[335393005,1724181042447,-500.0,0.00034931,21]
[335393007,1724181042456,-502.35873928,0.00034931,21]
[335393009,1724181042466,-500.0,0.00034931,21]
[335393011,1724181042475,-500.0,0.00034931,21]
[335393013,1724181042484,-500.0,0.00034931,21]
[335393015,1724181042494,-500.0,0.00034931,7]
[335393017,1724181042503,-500.0,0.00034931,21]
[335393019,1724181042513,-500.0,0.00034931,21]
[335393021,1724181042522,-500.0,0.00034931,7]
[335393023,1724181042532,-500.0,0.00034931,21]
[335393025,1724181042541,-609.9246168,0.00034931,21]
[335393026,1724181042551,-505.84147928,0.00034931,7]
[335393028,1724181042560,-393.44,0.00034931,21]
[335393030,1724181042569,-500.40014985,0.00034931,21]
[335393032,1724181042579,-500.0,0.00034931,21]
[335393034,1724181042589,-500.0,0.00034931,21]
[335393036,1724181042599,-500.0,0.00034931,21]
[335393037,1724181042608,-500.0,0.00034931,21]
[335393039,1724181042618,-500.0,0.00034931,21]
[335393041,1724181042627,-165.22248386,0.00034931,21]
[335393043,1724181042636,-500.0,0.00034931,21]
[335393045,1724181042646,-583.2469333,0.00034931,21]
[335393047,1724181042655,-502.6975238,0.00034931,21]
[335393048,1724181042665,-500.0,0.00034931,21]
[335393049,1724181042675,-500.0,0.00034931,21]
[335393050,1724181042684,-500.0,0.00034931,21]
[335393051,1724181042693,-500.0,0.00034931,21]
[335393052,1724181042703,-500.0,0.00034931,21]
[335393053,1724181042712,-500.0,0.00034931,21]
[335393054,1724181042721,-542.62,0.00034931,21]
[335393055,1724181042731,-500.0,0.00034931,21]
[335393056,1724181042740,-229.73648295,0.00034931,21]
[335393057,1724181042749,-500.0,0.00034931,21]
[335393058,1724181042758,-500.0,0.00034931,21]
[335393059,1724181042767,-486.47939309,0.00034931,21]
[335393060,1724181042777,-500.0,0.00034931,21]
[335393061,1724181042787,-500.0,0.00034931,21]
[335393062,1724181042796,-500.0,0.00034931,21]
[335393063,1724181042807,-545.45805345,0.00034931,21]
[335393064,1724181042817,-500.0,0.00034931,21]
[335393066,1724181042826,-182.97970693,0.00034931,21]
[335393067,1724181042835,-500.0,0.00034931,21]
[335393068,1724181042845,-500.0,0.00034931,21]
[335393069,1724181042854,-500.0,0.00034931,21]
[335393070,1724181042864,-500.0,0.00034931,21]
[335393071,1724181042873,-500.0,0.00034931,21]
[335393072,1724181042882,-505.18009451,0.00034931,21]
[335393073,1724181042891,-500.0,0.00034931,21]
[335393074,1724181042901,-500.0,0.00034931,21]
[335393075,1724181042911,-448.68916869,0.00034931,21]
[335393076,1724181042920,-500.0,0.00034931,21]
[335393077,1724181042929,-500.0,0.00034931,21]
[335393078,1724181042939,-500.0,0.00034931,21]
[335393079,1724181042949,-500.0,0.00034931,21]
[335393080,1724181042959,-500.0,0.00034931,21]
[335393081,1724181042968,-500.0,0.00034931,21]
[335393083,1724181042978,-500.95705276,0.00034931,21]
[335393085,1724181042987,-500.0,0.00034931,21]
[335393087,1724181042997,-241.8956478,0.00034931,21]
[335393089,1724181043006,-500.0,0.00034931,21]
[335393091,1724181043016,-500.0,0.00034931,21]
[335393093,1724181043026,-500.0,0.00034931,21]
[335393095,1724181043035,-500.0,0.00034931,21]
[335393096,1724181043045,-500.0,0.00034931,21]
[335393097,1724181043059,-500.0,0.00034931,21]
[335393098,1724181043070,-500.0,0.00034931,21]
[335393099,1724181043079,-514.21308514,0.00034931,21]
[335393100,1724181043089,-500.0,0.00034931,21]
[335393101,1724181043099,-505.72707702,0.00034931,21]
[335393102,1724181043109,-500.0,0.00034931,21]
[335393103,1724181043119,-500.0,0.00034931,21]
[335393104,1724181043128,-500.0,0.00034931,21]
[335393106,1724181043139,-515.50998984,0.00034931,21]
[335393108,1724181043149,-427.15350502,0.00034931,21]
[335393110,1724181043159,-509.23072719,0.00034931,21]
[335393112,1724181043169,-500.0,0.00034931,21]
[335393114,1724181043178,-500.0,0.00034931,21]
[335393116,1724181043188,-500.0,0.00034931,21]
[335393118,1724181043198,-500.0,0.00034931,21]
[335393120,1724181043210,-500.0,0.00034931,21]
[335393122,1724181043219,-500.0,0.00034931,21]
[335393124,1724181043230,-521.36917067,0.00034931,21]
[335393125,1724181043241,-500.0,0.00034931,21]
[335393128,1724181043252,-500.0,0.00034931,21]
[335393130,1724181043263,-500.0,0.00034931,21]
[335393132,1724181043273,-546.66644559,0.00034931,21]
[335393134,1724181043283,-506.36872346,0.00034931,21]
[335393136,1724181043293,-500.0,0.00034931,21]
[335393138,1724181043307,-500.0,0.00034931,21]
[335393140,1724181043317,-500.0,0.00034931,21]
[335393142,1724181043328,-500.0,0.00034931,21]
[335393144,1724181043338,-376.7327495,0.00034931,21]
[335393146,1724181043348,-500.0,0.00034931,21]
[335393148,1724181043358,-500.0,0.00034931,21]
[335393150,1724181043368,-500.0,0.00034931,21]
[335393152,1724181043377,-500.0,0.00034931,21]
[335393154,1724181043387,-500.0,0.00034931,21]
[335393156,1724181043397,-551.94,0.00034931,21]
[335393158,1724181043406,-500.0,0.00034931,21]
[335393160,1724181043416,-500.0,0.00034931,21]
[335393162,1724181043425,-500.0,0.00034931,21]
[335393164,1724181043434,-500.0,0.00034931,21]
[335393166,1724181043444,-500.25624756,0.00034931,21]
[335393168,1724181043455,-500.0,0.00034931,21]
[335393170,1724181043465,-500.0,0.00034931,21]
[335393172,1724181043474,-500.0,0.00034931,21]
[335393174,1724181043483,-500.0,0.00034931,21]
[335393176,1724181043493,-502.74099934,0.00034931,21]
[335393178,1724181043503,-500.0,0.00034931,21]
[335393180,1724181043513,-554.43998564,0.00034931,21]
[335393182,1724181043522,-500.0,0.00034931,21]
[335393184,1724181043532,-500.0,0.00034931,21]
[335393186,1724181043542,-500.0,0.00034931,21]
[335393188,1724181043552,-501.86255384,0.00034931,21]
[335393190,1724181043562,-500.0,0.00034931,2]
[335393192,1724181043571,-500.67244167,0.00034931,2]
[335393194,1724181043580,-500.1932811,0.00034931,21]
[335393196,1724181043589,-500.0,0.00034931,21]
[335393198,1724181043599,-500.0,0.00034931,21]
[335393201,1724181043609,-500.0,0.00034931,21]
[335393204,1724181043619,-500.0,0.00034931,21]
[335393206,1724181043629,-500.0,0.00034931,21]
[335393209,1724181043639,-500.0,0.00034931,21]
[335393212,1724181043650,-505.01568702,0.00034931,21]
[335393213,1724181043659,-500.0,0.00034931,21]
[335393214,1724181043669,-500.0,0.00034931,21]
[335393215,1724181043678,-500.0,0.00034931,21]
[335393216,1724181043688,-500.0,0.00034931,21]
[335393217,1724181043697,-264.55254378,0.00034931,21]
[335393218,1724181043706,-500.0,0.00034931,7]
[335393219,1724181043716,-500.0,0.00034931,21]
[335393220,1724181043726,-500.0,0.00034931,21]
[335393221,1724181043735,-500.0,0.00034931,21]
[335393222,1724181043745,-500.0,0.00034931,21]
[335393223,1724181043755,-500.0,0.00034931,21]
[335393224,1724181043764,-501.3110504,0.00034931,21]
[335393225,1724181043773,-500.0,0.00034931,21]
[335393226,1724181043783,-500.0,0.00034931,21]
[335393227,1724181043792,-504.18904369,0.00034931,21]
[335393228,1724181043803,-500.0,0.00034931,21]
[335393229,1724181043813,-500.0,0.00034931,21]
[335393230,1724181043824,-500.0,0.00034931,21]
[335393231,1724181043835,-501.51002754,0.00034931,21]
[335393232,1724181043846,-500.0,0.00034931,21]
[335393233,1724181043858,-500.0,0.00034931,21]
[335393234,1724181043868,-500.0,0.00034931,21]
[335393235,1724181043877,-500.0,0.00034931,21]
[335393236,1724181043886,-500.0,0.00034931,21]
[335393237,1724181043895,-500.0,0.00034931,21]
[335393238,1724181043906,-500.0,0.00034931,21]
[335393239,1724181043915,-500.0,0.00034931,21]
[335393240,1724181043926,-500.0,0.00034931,21]
[335393241,1724181043936,-500.0,0.00034931,21]
[335393242,1724181043947,-503.79179135,0.00034931,21]
[335393243,1724181043956,-500.0,0.00034931,21]
[335393244,1724181043966,-501.51456025,0.00034931,21]
[335393245,1724181043976,-500.0,0.00034931,21]
[335393246,1724181043986,-500.0,0.00034931,21]
[335393247,1724181043995,-500.0,0.00034931,21]
[335393248,1724181044005,-500.0,0.00034931,7]
[335393249,1724181044016,-500.0,0.00034931,21]
[335393250,1724181044026,-503.96616619,0.00034931,21]
[335393251,1724181044036,-500.0,0.00034931,7]
[335393252,1724181044046,-500.0,0.00034931,21]
[335393253,1724181044063,-500.0,0.00034931,21]
[335393254,1724181044152,-500.0,0.00034931,21]
[335393255,1724181044163,-500.0,0.00034931,21]
[335393256,1724181044172,-500.0,0.00034931,21]
[335393257,1724181044182,-500.0,0.00034931,21]
[335393258,1724181044191,-500.0,0.00034931,21]
[335393259,1724181044201,-500.0,0.00034931,21]
[335393260,1724181044211,-500.0,0.00034931,21]
[335393261,1724181044220,-500.0,0.00034931,21]
[335393262,1724181044230,-283.64936366,0.00034931,21]
[335393263,1724181044240,-500.0,0.00034931,21]
[335393264,1724181044249,-500.0,0.00034931,21]
[335393265,1724181044260,-500.0,0.00034931,21]
[335393266,1724181044270,-529.60028174,0.00034931,21]
[335393267,1724181044281,-500.0,0.00034931,21]
[335393268,1724181044290,-500.0,0.00034931,21]
[335393269,1724181044300,-504.07005618,0.00034931,21]
[335393270,1724181044310,-500.0,0.00034931,21]
[335393271,1724181044320,-500.0,0.00034931,21]
[335393272,1724181044330,-207.95,0.00034931,21]
[335393273,1724181044341,-500.0,0.00034931,21]
[335393274,1724181044351,-500.0,0.00034931,21]
[335393275,1724181044360,-500.0,0.00034931,21]
[335393276,1724181044370,-500.0,0.00034931,21]
[335393277,1724181044380,-192.43,0.00034931,21]
[335393278,1724181044390,-500.0,0.00034931,21]
[335393279,1724181044400,-517.31,0.00034931,21]
[335393280,1724181044410,-500.0,0.00034931,21]
[335393281,1724181044419,-500.0,0.00034931,21]
[335393282,1724181044430,-591.45954326,0.00034931,21]
[335393283,1724181044441,-517.31,0.00034931,21]
[335393284,1724181044452,-517.31,0.00034931,21]
[335393285,1724181044462,-517.31,0.00034931,21]
[335393286,1724181044472,-500.67615091,0.00034931,21]
[335393287,1724181044481,-517.31,0.00034931,21]
[335393288,1724181044491,-517.31,0.00034931,21]
[335393290,1724181044500,-517.31,0.00034931,21]
[335393292,1724181044509,-517.31,0.00034931,21]
[335393294,1724181044518,-517.31,0.00034931,21]
[335393295,1724181044529,-517.31,0.00034931,21]
[335393297,1724181044538,-517.31,0.00034931,21]
[335393299,1724181044548,-517.31,0.00034931,21]
[335393301,1724181044559,-517.31,0.00034931,21]
[335393303,1724181044568,-517.31,0.00034931,21]
[335393305,1724181044578,-517.31,0.00034931,21]
[335393306,1724181044587,-500.0,0.00034931,21]
[335393308,1724181044597,-517.31,0.00034931,21]
[335393310,1724181044607,-517.31,0.00034931,21]
[335393312,1724181044616,-500.0,0.00034931,21]
[335393314,1724181044626,-517.31,0.00034931,21]
[335393316,1724181044637,-500.0,0.00034931,21]
[335393318,1724181044647,-500.0,0.00034931,21]
[335393320,1724181044658,-500.0,0.00034931,21]
[335393322,1724181044668,-517.31,0.00034931,21]
[335393324,1724181044678,-500.0,0.00034931,21]
[335393326,1724181044689,-517.31,0.00034931,21]
[335393328,1724181044702,-523.45705127,0.00034931,21]
[335393331,1724181044712,-517.31,0.00034931,21]
[335393333,1724181044722,-517.31,0.00034931,21]
[335393335,1724181044733,-517.31,0.00034931,21]
[335393337,1724181044743,-517.54737091,0.00034931,21]
[335393339,1724181044756,-500.0,0.00034931,21]
[335393341,1724181044765,-500.0,0.00034931,21]
[335393343,1724181044775,-500.0,0.00034931,21]
[335393345,1724181044785,-500.0,0.00034931,21]
[335393347,1724181044795,-501.55091637,0.00034931,21]
[335393349,1724181044806,-500.0,0.00034931,21]
[335393351,1724181044815,-500.0,0.00034931,21]
[335393354,1724181044825,-500.0,0.00034931,21]
[335393356,1724181044835,-243.79,0.00034931,21]
[335393358,1724181044845,-523.27466402,0.00034931,21]
[335393360,1724181044855,-500.0,0.00034931,21]
[335393362,1724181044866,-501.90928877,0.00034931,21]
[335393364,1724181044875,-209.13324107,0.00034931,21]
[335393366,1724181044884,-500.0,0.00034931,21]
[335393368,1724181044895,-500.0,0.00034931,21]
[335393370,1724181044905,-500.0,0.00034931,21]
[335393372,1724181044915,-502.76661967,0.00034931,21]
[335393374,1724181044925,-500.0,0.00034931,21]
[335393376,1724181044935,-500.0,0.00034931,21]
[335393378,1724181044946,-500.0,0.00034931,21]
[335393380,1724181044956,-500.0,0.00034931,21]
[335393382,1724181044967,-500.0,0.00034931,21]
[335393384,1724181044977,-510.9339362,0.00034931,21]
[335393386,1724181044986,-500.0,0.00034931,21]
[335393387,1724181044996,-473.76,0.00034931,21]
[335393388,1724181045006,-500.0,0.00034931,21]
[335393389,1724181045015,-502.59095076,0.00034931,21]
[335393390,1724181045026,-500.0,0.00034931,21]
[335393391,1724181045036,-502.90595224,0.00034931,21]
[335393392,1724181045045,-350.26400065,0.00034931,21]
[335393393,1724181045057,-500.0,0.00034931,21]
[335393394,1724181045070,-500.0,0.00034931,21]
[335393395,1724181045080,-500.0,0.00034931,21]
[335393396,1724181045090,-203.52,0.00034931,21]
[335393397,1724181045099,-500.0,0.00034931,21]
[335393398,1724181045109,-505.84789719,0.00034931,21]
[335393399,1724181045119,-500.0,0.00034931,21]
[335393400,1724181045129,-500.0,0.00034931,21]
[335393401,1724181045139,-502.74253619,0.00034931,21]
[335393402,1724181045150,-500.0,0.00034931,21]
[335393403,1724181045160,-279.57087627,0.00034931,21]
[335393404,1724181045169,-500.0,0.00034931,21]
[335393405,1724181045179,-394.39263547,0.00034931,21]
[335393406,1724181045189,-475.0,0.00034931,7]
[335393407,1724181045199,-475.0,0.00034931,7]
[335393408,1724181045209,-475.0,0.00034931,7]
[335393409,1724181045220,-500.0,0.00034931,21]
[335393410,1724181045231,-475.0,0.00034931,7]
[335393411,1724181045241,-500.0,0.00034931,21]
[335393412,1724181045250,-500.0,0.00034931,21]
[335393413,1724181045261,-500.0,0.00034931,21]
[335393414,1724181045270,-151.0,0.00034931,7]
[335393415,1724181045280,-421.88257582,0.00034931,21]
[335393416,1724181045290,-151.355207,0.00034931,7]
[335393417,1724181045303,-475.0,0.00034931,7]
[335393418,1724181045312,-475.0,0.00034931,7]
[335393419,1724181045323,-509.52675706,0.00034931,21]
[335393420,1724181045334,-475.0,0.00034931,7]
[335393421,1724181045344,-500.0,0.00034931,21]
[335393422,1724181045354,-575.35760915,0.00034931,21]
[335393423,1724181045364,-475.0,0.00034931,7]
[335393424,1724181045374,-565.00412965,0.00034931,21]
[335393425,1724181045384,-500.0,0.00034931,21]
[335393426,1724181045394,-500.0,0.00034931,21]
[335393427,1724181045403,-388.03666403,0.00034931,21]
[335393428,1724181045413,-500.0,0.00034931,21]
[335393429,1724181045422,-500.0,0.00034931,21]
[335393430,1724181045432,-500.0,0.00034931,21]
[335393431,1724181045443,-500.0,0.00034931,21]
[335393432,1724181045453,-296.33,0.00034931,21]
[335393433,1724181045465,-500.0,0.00034931,21]
[335393434,1724181045475,-500.0,0.00034931,21]
[335393435,1724181045485,-500.0,0.00034931,21]
[335393436,1724181045494,-500.0,0.00034931,21]
[335393437,1724181045504,-500.0,0.00034931,21]
[335393438,1724181045514,-500.0,0.00034931,21]
[335393439,1724181045524,-471.9892997,0.00034931,21]
[335393440,1724181045533,-500.0,0.00034931,21]
[335393441,1724181045543,-500.0,0.00034931,21]
[335393442,1724181045555,-500.0,0.00034931,21]
[335393443,1724181045566,-500.0,0.00034931,21]
[335393444,1724181045576,-500.0,0.00034931,21]
[335393445,1724181045585,-500.0,0.00034931,21]
[335393446,1724181045595,-500.0,0.00034931,21]
[335393447,1724181045605,-500.0,0.00034931,21]
[335393448,1724181045615,-500.0,0.00034931,21]
[335393449,1724181045624,-500.0,0.00034931,21]
[335393450,1724181045634,-500.0,0.00034931,21]
[335393451,1724181045644,-466.73067825,0.00034931,21]
[335393452,1724181045812,-33.26932175,0.00034931,21]
[335393453,1724181045822,-500.0,0.00034931,21]
[335393454,1724181045832,-500.0,0.00034931,21]
[335393455,1724181045843,-500.41606555,0.00034931,21]
[335393456,1724181045853,-500.0,0.00034931,21]
[335393458,1724181045863,-153.02501592,0.00034931,21]
[335393459,1724181045873,-500.0,0.00034931,21]
[335393460,1724181045882,-512.41169414,0.00034931,21]
[335393461,1724181045891,-571.72864269,0.00034931,21]
[335393462,1724181045901,-500.0,0.00034931,21]
[335393463,1724181045910,-500.0,0.00034931,21]
[335393464,1724181045919,-627.3489194,0.00034931,21]
[335393465,1724181045929,-2000.0,0.00034931,2]
[335393466,1724181045938,-2000.0,0.00034931,2]
[335393467,1724181045947,-501.58720414,0.00034931,21]
[335393468,1724181045956,-500.0,0.00034931,21]
[335393469,1724181045966,-500.0,0.00034931,21]
[335393470,1724181045975,-415.8271817,0.00034931,21]
[335393471,1724181045985,-500.0,0.00034931,21]
[335393472,1724181045994,-500.0,0.00034931,21]
[335393473,1724181046003,-500.0,0.00034931,21]
[335393474,1724181046014,-541.8987227,0.00034931,21]
[335393475,1724181046023,-500.0,0.00034931,21]
[335393476,1724181046033,-500.0,0.00034931,21]
[335393477,1724181046042,-500.0,0.00034931,21]
[335393478,1724181046055,-500.0,0.00034931,21]
[335393479,1724181046066,-151.0,0.00034931,7]
[335393481,1724181046077,-500.0,0.00034931,21]
[335393483,1724181046087,-500.0,0.00034931,21]
[335393485,1724181046096,-500.0,0.00034931,21]
[335393487,1724181046106,-377.46641472,0.00034931,21]
[335393489,1724181046117,-500.0,0.00034931,21]
[335393490,1724181046126,-500.0,0.00034931,21]
[335393491,1724181046135,-538.4638379,0.00034931,21]
[335393492,1724181046147,-151.0,0.00034931,7]
[335393493,1724181046158,-151.0,0.00034931,7]
[335393495,1724181046167,-360.58791304,0.00034931,21]
[335393497,1724181046177,-500.0,0.00034931,21]
[335393499,1724181046186,-500.0,0.00034931,21]
[335393500,1724181046196,-500.0,0.00034931,21]
[335393501,1724181046205,-500.0,0.00034931,21]
[335393502,1724181046214,-150.0,0.00034931,21]
[335393503,1724181046224,-150.0,0.00034931,21]
[335393505,1724181046234,-500.0,0.00034931,21]
[335393507,1724181046244,-500.0,0.00034931,21]
[335393512,1724181046324,-500.0,0.00034931,21]
[335393514,1724181046345,-500.0,0.00034931,21]
[335393516,1724181046354,-500.0,0.00034931,21]
[335393518,1724181046363,-508.78933289,0.00034931,21]
[335393520,1724181046373,-500.0,0.00034931,21]
[335393522,1724181046382,-434.70123653,0.00034931,21]
[335393525,1724181046401,-65.29876347,0.00034931,21]
[335393527,1724181046411,-500.0,0.00034931,21]
[335393529,1724181046420,-500.0,0.00034931,21]
[335393531,1724181046429,-500.0,0.00034931,21]
[335393533,1724181046439,-500.0,0.00034931,21]
[335393535,1724181046448,-420.2724185,0.00034931,21]
[335393614,1724182038115,-1039.12861041,0.00012999,2]
[335393615,1724182038138,-960.01606704,0.00014245,2]
[335393616,1724182040103,-1230.00245727,0.00014245,2]
[335393617,1724182040125,-873.64065766,0.00014245,3]
[335393618,1724182040147,-483.50683086,0.00014245,2]
[335393624,1724182145134,-178.42419727,0.00013792,2]
[335393625,1724182145156,-207.60527661,0.00013971,2]
[335393626,1724182145177,-275.74225108,0.00013971,2]
[335393627,1724182145199,-154.83735589,0.00014245,2]
[335393628,1724182145221,-278.227237,0.00014247,2]
[335393629,1724182145242,-244.47706196,0.00014519,2]
[335393630,1724182145263,-1111.07542891,0.00015,2]
[335393631,1724182145285,-953.45396956,0.00015,2]
[335393632,1724182145307,-500.0,0.00016438,2]
[335393633,1724182145328,-193.59892549,0.00016438,2]
[335393634,1724182145350,-277.6716568,0.000165,2]
[335393635,1724182145372,-1000.0,0.00016986,2]
[335393636,1724182145393,-252.0,0.00017265,2]
[335393637,1724182145417,-2775.71231804,0.00017266,2]
[335393638,1724182145438,-62.47312139,0.00017884,2]
[335393639,1724182148314,-626.93669545,0.00017884,2]
[335393640,1724182148337,-10342.93698711,0.00017898,2]
[335393641,1724182157140,-390.17035526,0.00019863,2]
[335393642,1724182163122,-269.85819407,0.00019863,2]
[335393643,1724182170152,-122.62942855,0.00019863,2]
[335393644,1724182170175,-149.48190753,0.0002,2]
[335393652,1724182187528,17.05954424,0.00017266,2]
[335393662,1724182232685,-500.0,0.00016438,2]
[335393663,1724182232695,-611.607999,0.00016986,2]
[335393664,1724182232706,-1094.01588467,0.00017266,2]
[335393665,1724182232715,-539.05611633,0.0002,2]
[335393709,1724182238456,-618.00417165,0.00017259,2]
[335393761,1724182240858,-493.07125726,0.00017259,2]
[335393762,1724182240868,-1731.36131573,0.0002,2]
[335393763,1724182240877,-435.0,0.0002,2]
[335393764,1724182240887,-178.28102427,0.0002,2]
[335393765,1724182240897,-156.6552172,0.0002,2]
[335393766,1724182240907,-154.60575532,0.0002,2]
[335393767,1724182240917,-551.16624487,0.0002,2]
[335393768,1724182240926,-130.94316138,0.00020707,2]
[335393787,1724182243589,-6705.54071661,0.0002,2]
[335393846,1724182940274,2888.0,0.000203,120]
[335393847,1724183146145,-365.55820643,0.00013051,2]
[335393848,1724183146166,-158.1221147,0.00013496,2]
[335393849,1724183146187,-741.02401051,0.00013596,2]
[335393850,1724183152090,-130.11702095,0.00013596,2]
[335393851,1724183152113,-157.374697,0.00014247,2]
[335393852,1724183152133,-275.399892,0.00014247,2]
[335393853,1724183152158,-500.0,0.00016438,2]
[335393854,1724183152178,-114.27478433,0.00016621,2]
[335393858,1724183227095,-500.0,0.00016438,2]
[335393859,1724183227118,-2.34580414,0.00016621,2]
[335393861,1724183248109,-99.38628493,0.00016621,2]
[335393862,1724183248132,-197.12031868,0.00016886,2]
[335393863,1724183248153,-45.71776736,0.00016986,2]
[335393878,1724183346139,-500.0,0.00016438,2]
[335393879,1724183346161,-394.24063736,0.00016886,2]
[335393880,1724183346182,-1000.0,0.00016986,2]
[335393881,1724183346202,-454.28223264,0.00017884,2]
[335393882,1724183346223,-3243.6424887,0.00018072,2]
[335393883,1724183352122,-1880.76391118,0.00018072,2]
[335393884,1724183352143,-300.0,0.00018221,2]
[335393885,1724183352164,-5124.40639988,0.00018222,2]
[335393886,1724183352184,-5124.40639988,0.0001846,2]
[335393887,1724183352204,-440.9,0.00018687,2]
[335393888,1724183352225,-500.0,0.00018718,2]
[335393889,1724183352245,-5124.40639988,0.00018845,2]
[335393890,1724183352265,-150.112233,0.00019,2]
[335393891,1724183352286,-5124.40639988,0.000191,2]
[335393892,1724183352305,-166.753821,0.00019178,2]
[335393893,1724183352324,-165.008253,0.00019178,2]
[335393894,1724183352344,-251.0,0.00019178,2]
[335393895,1724183352364,-5124.40639988,0.00019181,2]
[335393896,1724183352385,-5124.40639988,0.00019511,2]
[335393897,1724183352406,-150.0,0.00019647,2]
[335393898,1724183352426,-1065.06381345,0.000199,2]
[335393899,1724183352446,-1042.35217397,0.00019911,2]
[335393900,1724183372203,-150.0,0.00019876,2]
[335393901,1724183372228,-1859.59531573,0.00019899,2]
[335393902,1724183372253,-1103.64,0.0001998,3]
[335393903,1724183372277,-551.82,0.0001998,3]
[335393904,1724183372298,-275.91,0.0001998,3]
[335393905,1724183372321,-827.77,0.0001998,3]
[335393906,1724183372342,-505.14131482,0.0001999,2]
[335394196,1724183435909,-1154.80127443,0.000199,2]
[335394197,1724183435921,-643.79,0.0001998,3]
[335394198,1724183435932,-300.0,0.00019989,2]
[335394199,1724183435943,-7406.11084191,0.0001999,2]
[335394200,1724183435960,-2548.54,0.0001999,2]
[335394213,1724183438999,-140.52270352,0.0001999,2]
[335394214,1724183439011,-94724.36175375,0.0001999,2]
[335394215,1724183439021,-3806.30546516,0.0002,2]
[335394216,1724183439031,-434.00975875,0.0002,2]
[335394217,1724183439040,-126499.41497098,0.0002,2]
[335394218,1724183439051,-551.16624487,0.0002,2]